[Event "*** MasterClass Titled Tuesday Blitz"]
[Site "Chess.com"]
[Date "2017.10.03"]
[Round "5"]
[White "51616516516"]
[Black "Grootneus"]
[Result "1-0"]
[WhiteElo "2061"]
[BlackElo "2125"]
[TimeControl "180+2"]
[EndTime "14:06:49 PDT"]
[Termination "51616516516 won by checkmate"]

1. d4 {[%clk 0:03:01.9]} 1... Nf6 {[%clk 0:02:57.3]} 2. c4 {[%clk 0:03:03.3]}
2... c5 {[%clk 0:02:57.9]} 3. d5 {[%clk 0:03:03.3]} 3... b5 {[%clk 0:02:59.4]}
4. cxb5 {[%clk 0:03:04.1]} 4... a6 {[%clk 0:03:01.1]} 5. bxa6 {[%clk 0:03:05.2]}
5... g6 {[%clk 0:03:02.1]} 6. Nc3 {[%clk 0:03:05.9]} 6... Bxa6 {[%clk 0:03:03]}
7. e4 {[%clk 0:03:06.3]} 7... Qa5 {[%clk 0:03:01.7]} 8. Bd2 {[%clk 0:03:00.3]}
8... d6 {[%clk 0:02:58.7]} 9. g3 {[%clk 0:02:52.9]} 9... Bg7 {[%clk 0:02:56.2]}
10. Nf3 {[%clk 0:02:47]} 10... O-O {[%clk 0:02:55.1]} 11. Qc2 {[%clk 0:02:30.9]}
11... Nbd7 {[%clk 0:02:49]} 12. Nb5 {[%clk 0:02:27.6]} 12... Qb6 {[%clk
0:02:49.1]} 13. a4 {[%clk 0:02:20.4]} 13... c4 {[%clk 0:02:28.5]} 14. Nbd4
{[%clk 0:01:36.3]} 14... Rfb8 {[%clk 0:02:14.2]} 15. Bc3 {[%clk 0:01:32.7]}
15... Nc5 {[%clk 0:02:07.5]} 16. a5 {[%clk 0:01:19.4]} 16... Qc7 {[%clk
0:01:53.7]} 17. Be2 {[%clk 0:00:46.3]} 17... Nfxe4 {[%clk 0:01:41.2]} 18. O-O
{[%clk 0:00:47.1]} 18... Nxc3 {[%clk 0:01:36.9]} 19. bxc3 {[%clk 0:00:49]} 19...
Nb3 {[%clk 0:01:34.2]} 20. Ra2 {[%clk 0:00:35]} 20... Nxd4 {[%clk 0:00:46.7]}
21. Nxd4 {[%clk 0:00:31.1]} 21... Bxd4 {[%clk 0:00:47.8]} 22. cxd4 {[%clk
0:00:32.1]} 22... Rb5 {[%clk 0:00:49.1]} 23. Qxc4 {[%clk 0:00:27.8]} 23... Qxc4
{[%clk 0:00:42.8]} 24. Bxc4 {[%clk 0:00:28.5]} 24... Rb4 {[%clk 0:00:44.1]} 25.
Bxa6 {[%clk 0:00:26.5]} 25... Rxa6 {[%clk 0:00:46]} 26. Re1 {[%clk 0:00:20.5]}
26... Kf8 {[%clk 0:00:40.4]} 27. Rc1 {[%clk 0:00:16.6]} 27... Rb5 {[%clk
0:00:29.7]} 28. Rc8+ {[%clk 0:00:11.3]} 28... Kg7 {[%clk 0:00:30.6]} 29. Rc7
{[%clk 0:00:11.9]} 29... Kf6 {[%clk 0:00:30.4]} 30. Re2 {[%clk 0:00:13.4]} 30...
e6 {[%clk 0:00:30.2]} 31. dxe6 {[%clk 0:00:13.6]} 31... fxe6 {[%clk 0:00:31]}
32. Rxh7 {[%clk 0:00:15.2]} 32... Raxa5 {[%clk 0:00:31.6]} 33. Kg2 {[%clk
0:00:12.1]} 33... Rb4 {[%clk 0:00:29.4]} 34. Re4 {[%clk 0:00:12.3]} 34... Raa4
{[%clk 0:00:27.1]} 35. Rf4+ {[%clk 0:00:12.3]} 35... Kg5 {[%clk 0:00:20.9]} 36.
h4# {[%clk 0:00:13.7]} 1-0

[Event "*** MasterClass Titled Tuesday Blitz"]
[Site "Chess.com"]
[Date "2017.10.03"]
[Round "5"]
[White "MartinMatthiesen"]
[Black "pandamaster3000"]
[Result "0-1"]
[WhiteElo "2308"]
[BlackElo "2182"]
[TimeControl "180+2"]
[EndTime "14:06:54 PDT"]
[Termination "pandamaster3000 won by checkmate"]

1. d4 {[%clk 0:03:01.9]} 1... Nf6 {[%clk 0:03:00.6]} 2. c4 {[%clk 0:03:02.1]}
2... g6 {[%clk 0:03:01.7]} 3. Nc3 {[%clk 0:03:02.3]} 3... Bg7 {[%clk 0:03:03.2]}
4. e4 {[%clk 0:03:02.8]} 4... d6 {[%clk 0:03:04.8]} 5. Be2 {[%clk 0:03:02]} 5...
O-O {[%clk 0:03:06.3]} 6. Nf3 {[%clk 0:03:02.9]} 6... Na6 {[%clk 0:03:07.5]} 7.
O-O {[%clk 0:02:59.6]} 7... e5 {[%clk 0:03:09]} 8. d5 {[%clk 0:03:00.4]} 8...
Nc5 {[%clk 0:03:09.4]} 9. Qc2 {[%clk 0:02:59.5]} 9... a5 {[%clk 0:03:10.9]} 10.
Bg5 {[%clk 0:02:58.9]} 10... h6 {[%clk 0:03:01.7]} 11. Bh4 {[%clk 0:02:50.5]}
11... Qe8 {[%clk 0:02:22.5]} 12. Nd2 {[%clk 0:02:48]} 12... Nh7 {[%clk
0:02:17.5]} 13. b3 {[%clk 0:02:44.4]} 13... f5 {[%clk 0:02:17.3]} 14. f3 {[%clk
0:02:41.6]} 14... Bf6 {[%clk 0:02:12.5]} 15. Bf2 {[%clk 0:02:41.8]} 15... Qe7
{[%clk 0:01:55.9]} 16. a3 {[%clk 0:02:38]} 16... Bh4 {[%clk 0:01:56.4]} 17. Bxh4
{[%clk 0:02:30.2]} 17... Qxh4 {[%clk 0:01:58.3]} 18. b4 {[%clk 0:02:30.8]} 18...
Na6 {[%clk 0:01:51.9]} 19. Rab1 {[%clk 0:02:12.4]} 19... Qe7 {[%clk 0:01:42.4]}
20. Kh1 {[%clk 0:01:35.3]} 20... f4 {[%clk 0:01:36.4]} 21. c5 {[%clk 0:01:10.9]}
21... g5 {[%clk 0:01:27.7]} 22. c6 {[%clk 0:00:48.9]} 22... b6 {[%clk
0:01:10.1]} 23. bxa5 {[%clk 0:00:45.4]} 23... bxa5 {[%clk 0:01:12]} 24. Na4
{[%clk 0:00:24.6]} 24... h5 {[%clk 0:01:08.9]} 25. Rb5 {[%clk 0:00:18.1]} 25...
g4 {[%clk 0:01:08.7]} 26. Rxa5 {[%clk 0:00:18.8]} 26... g3 {[%clk 0:01:08.1]}
27. Rb1 {[%clk 0:00:15.2]} 27... h4 {[%clk 0:00:52]} 28. h3 {[%clk 0:00:16.4]}
28... Ng5 {[%clk 0:00:48.1]} 29. Bf1 {[%clk 0:00:16.7]} 29... Rf7 {[%clk
0:00:42.3]} 30. Rb7 {[%clk 0:00:14.1]} 30... Rg7 {[%clk 0:00:39]} 31. Rxa6
{[%clk 0:00:14.5]} 31... Rxa6 {[%clk 0:00:33]} 32. Bxa6 {[%clk 0:00:15.4]} 32...
Nxh3 {[%clk 0:00:34.6]} 33. Rb8 {[%clk 0:00:15.8]} 33... Nf2+ {[%clk 0:00:35.5]}
34. Kg1 {[%clk 0:00:16.9]} 34... h3 {[%clk 0:00:32.7]} 35. Rxc8+ {[%clk
0:00:18]} 35... Kh7 {[%clk 0:00:32.8]} 36. gxh3 {[%clk 0:00:19.1]} 36... Qh4
{[%clk 0:00:28.4]} 37. Bf1 {[%clk 0:00:17.4]} 37... g2 {[%clk 0:00:25.7]} 38.
Bxg2 {[%clk 0:00:17.8]} 38... Qg3 {[%clk 0:00:27.1]} 39. Kf1 {[%clk 0:00:17.5]}
39... Qxg2+ {[%clk 0:00:28.1]} 40. Ke1 {[%clk 0:00:18.7]} 40... Nxh3 {[%clk
0:00:24.9]} 41. Nc3 {[%clk 0:00:14.8]} 41... Qf2+ {[%clk 0:00:22.9]} 42. Kd1
{[%clk 0:00:15.6]} 42... Rg1+ {[%clk 0:00:24.4]} 43. Nf1 {[%clk 0:00:16.6]}
43... Rxf1# {[%clk 0:00:25.5]} 0-1

[Event "*** MasterClass Titled Tuesday Blitz"]
[Site "Chess.com"]
[Date "2017.10.03"]
[Round "5"]
[White "Daniela_Movileanu"]
[Black "Abdodi"]
[Result "1-0"]
[WhiteElo "2095"]
[BlackElo "2139"]
[TimeControl "180+2"]
[EndTime "14:06:54 PDT"]
[Termination "Daniela_Movileanu won by resignation"]

1. e4 {[%clk 0:03:01.9]} 1... e5 {[%clk 0:02:57.5]} 2. Nf3 {[%clk 0:03:02.5]}
2... Nf6 {[%clk 0:02:57.7]} 3. Nxe5 {[%clk 0:03:01.5]} 3... d6 {[%clk
0:02:58.5]} 4. Nf3 {[%clk 0:03:02.6]} 4... Nxe4 {[%clk 0:02:59.4]} 5. Nc3 {[%clk
0:03:04.2]} 5... Nxc3 {[%clk 0:03:00.3]} 6. dxc3 {[%clk 0:03:06.1]} 6... Be7
{[%clk 0:03:01.2]} 7. Be3 {[%clk 0:03:07.6]} 7... O-O {[%clk 0:02:58.7]} 8. Qd2
{[%clk 0:03:09]} 8... a5 {[%clk 0:02:56.9]} 9. O-O-O {[%clk 0:03:10]} 9... a4
{[%clk 0:02:58.1]} 10. a3 {[%clk 0:03:11.3]} 10... c6 {[%clk 0:02:50]} 11. h4
{[%clk 0:03:11.1]} 11... b5 {[%clk 0:02:50.7]} 12. Ng5 {[%clk 0:03:08.7]} 12...
Bf5 {[%clk 0:02:38.5]} 13. Bd3 {[%clk 0:03:09]} 13... Bxd3 {[%clk 0:02:37.4]}
14. Qxd3 {[%clk 0:03:10.9]} 14... g6 {[%clk 0:02:34.1]} 15. f4 {[%clk
0:02:44.4]} 15... Nd7 {[%clk 0:02:29]} 16. h5 {[%clk 0:02:43.9]} 16... Bxg5
{[%clk 0:01:55.4]} 17. fxg5 {[%clk 0:02:42.5]} 17... Ne5 {[%clk 0:01:55.9]} 18.
Qe4 {[%clk 0:02:41.3]} 18... Re8 {[%clk 0:01:51.1]} 19. Bd4 {[%clk 0:02:41.6]}
19... Qxg5+ {[%clk 0:01:47.3]} 20. Kb1 {[%clk 0:02:38.1]} 20... d5 {[%clk
0:01:40.9]} 21. Qe1 {[%clk 0:02:27.9]} 21... Nf3 {[%clk 0:01:11.8]} 22. Qf2
{[%clk 0:02:24]} 22... Nxd4 {[%clk 0:01:08.5]} 23. Rxd4 {[%clk 0:02:25.9]} 23...
Qe3 {[%clk 0:00:58.8]} 24. Qh4 {[%clk 0:02:11.6]} 24... g5 {[%clk 0:00:50.3]}
25. Qg4 {[%clk 0:01:59.3]} 25... h6 {[%clk 0:00:50.2]} 26. Qd7 {[%clk
0:01:55.4]} 26... Qe6 {[%clk 0:00:48.8]} 27. Qc7 {[%clk 0:01:54]} 27... Rac8
{[%clk 0:00:47.4]} 28. Qg3 {[%clk 0:01:53.4]} 28... Qe5 {[%clk 0:00:43.2]} 29.
Qg4 {[%clk 0:01:53.4]} 29... Re6 {[%clk 0:00:43.7]} 30. Rf1 {[%clk 0:01:50.5]}
30... Rf8 {[%clk 0:00:38.1]} 31. Rd3 {[%clk 0:01:39.7]} 31... f5 {[%clk
0:00:38.8]} 32. Qh3 {[%clk 0:01:26.4]} 32... f4 {[%clk 0:00:35.2]} 33. Rdd1
{[%clk 0:01:21.5]} 33... Qf5 {[%clk 0:00:30.2]} 34. Qh2 {[%clk 0:01:16.5]} 34...
Re2 {[%clk 0:00:30.2]} 35. Rc1 {[%clk 0:01:12.1]} 35... Qe4 {[%clk 0:00:30.8]}
36. Qg1 {[%clk 0:01:11.3]} 36... Qe3 {[%clk 0:00:25.7]} 37. Qh1 {[%clk 0:01:06]}
37... Re8 {[%clk 0:00:25]} 38. Rf3 {[%clk 0:01:05]} 38... Qc5 {[%clk 0:00:21.3]}
39. Qd1 {[%clk 0:01:02]} 39... R8e4 {[%clk 0:00:19.1]} 40. g3 {[%clk 0:01:01.5]}
40... Re1 {[%clk 0:00:17.5]} 41. Qxe1 {[%clk 0:01:00.3]} 41... Rxe1 {[%clk
0:00:18.2]} 42. Rxe1 {[%clk 0:01:02.2]} 42... fxg3 {[%clk 0:00:18.9]} 43. Rxg3
{[%clk 0:01:03.3]} 43... Qf2 {[%clk 0:00:15.4]} 44. Rge3 {[%clk 0:01:03.8]}
44... g4 {[%clk 0:00:16.4]} 45. Re8+ {[%clk 0:01:01.9]} 45... Kf7 {[%clk
0:00:17.2]} 46. R1e7+ {[%clk 0:01:02.4]} 46... Kf6 {[%clk 0:00:18.2]} 47. Rf8+
{[%clk 0:01:02.3]} 47... Kxe7 {[%clk 0:00:19.2]} 48. Rxf2 {[%clk 0:01:03.2]}
48... Ke6 {[%clk 0:00:20.8]} 49. Rf4 {[%clk 0:01:00]} 1-0

[Event "*** MasterClass Titled Tuesday Blitz"]
[Site "Chess.com"]
[Date "2017.10.03"]
[Round "5"]
[White "Robin-Side"]
[Black "guilhermedeola"]
[Result "0-1"]
[WhiteElo "2567"]
[BlackElo "2043"]
[TimeControl "180+2"]
[EndTime "14:06:55 PDT"]
[Termination "guilhermedeola won on time"]

1. d4 {[%clk 0:02:59.7]} 1... g6 {[%clk 0:02:56]} 2. e4 {[%clk 0:03:00.2]} 2...
Bg7 {[%clk 0:02:56.6]} 3. Nc3 {[%clk 0:03:01.6]} 3... e6 {[%clk 0:02:53.4]} 4.
Bf4 {[%clk 0:02:43.3]} 4... d6 {[%clk 0:02:49.1]} 5. Qd2 {[%clk 0:02:43.4]} 5...
h6 {[%clk 0:02:47]} 6. O-O-O {[%clk 0:02:43.1]} 6... Ne7 {[%clk 0:02:47.8]} 7.
h4 {[%clk 0:02:43.3]} 7... Nd7 {[%clk 0:02:48.2]} 8. h5 {[%clk 0:02:44.1]} 8...
g5 {[%clk 0:02:48.6]} 9. Be3 {[%clk 0:02:45.3]} 9... b6 {[%clk 0:02:47.5]} 10.
f4 {[%clk 0:02:45.5]} 10... f6 {[%clk 0:02:43.7]} 11. fxg5 {[%clk 0:02:36.6]}
11... fxg5 {[%clk 0:02:43.1]} 12. e5 {[%clk 0:02:30.9]} 12... d5 {[%clk
0:02:39.5]} 13. Nf3 {[%clk 0:01:49]} 13... Bb7 {[%clk 0:02:39.6]} 14. g4 {[%clk
0:01:27.7]} 14... Nf8 {[%clk 0:02:36.8]} 15. Nxg5 {[%clk 0:01:16.9]} 15... hxg5
{[%clk 0:02:37]} 16. Bxg5 {[%clk 0:01:18.8]} 16... Nh7 {[%clk 0:02:31.7]} 17. h6
{[%clk 0:00:40.7]} 17... Bf8 {[%clk 0:01:54.9]} 18. Bf6 {[%clk 0:00:20]} 18...
Rg8 {[%clk 0:01:51.7]} 19. g5 {[%clk 0:00:17.2]} 19... Qd7 {[%clk 0:01:48.9]}
20. Bd3 {[%clk 0:00:17.7]} 20... Ng6 {[%clk 0:01:39.3]} 21. Rdf1 {[%clk
0:00:10.4]} 21... Be7 {[%clk 0:01:19.5]} 22. Qh2 {[%clk 0:00:10.2]} 22... O-O-O
{[%clk 0:01:18.2]} 23. Qh5 {[%clk 0:00:10]} 23... Ngf8 {[%clk 0:00:41]} 24. g6
{[%clk 0:00:08.8]} 24... Nxf6 {[%clk 0:00:39.9]} 25. exf6 {[%clk 0:00:09.7]}
25... Bxf6 {[%clk 0:00:33.4]} 26. Rxf6 {[%clk 0:00:11.5]} 26... Nxg6 {[%clk
0:00:32.3]} 27. Rxg6 {[%clk 0:00:11.6]} 27... Rh8 {[%clk 0:00:27.7]} 28. h7
{[%clk 0:00:11.4]} 28... Qf7 {[%clk 0:00:25.4]} 29. Rh6 {[%clk 0:00:11]} 29...
Qf4+ {[%clk 0:00:26]} 30. Kb1 {[%clk 0:00:11.3]} 30... Qxd4 {[%clk 0:00:27.3]}
31. Rxe6 {[%clk 0:00:08.2]} 31... Qg7 {[%clk 0:00:26.2]} 32. Qh6 {[%clk
0:00:07.1]} 32... Qf7 {[%clk 0:00:23.9]} 33. a3 {[%clk 0:00:04.5]} 33... Kb8
{[%clk 0:00:24.5]} 34. Rf6 {[%clk 0:00:04.7]} 34... Qe7 {[%clk 0:00:24.9]} 0-1

[Event "*** MasterClass Titled Tuesday Blitz"]
[Site "Chess.com"]
[Date "2017.10.03"]
[Round "5"]
[White "Muisback26"]
[Black "BillieKimbah"]
[Result "1-0"]
[WhiteElo "2690"]
[BlackElo "2692"]
[TimeControl "180+2"]
[EndTime "14:07:00 PDT"]
[Termination "Muisback26 won by resignation"]

1. e4 {[%clk 0:03:01.9]} 1... e5 {[%clk 0:03:00.5]} 2. Nf3 {[%clk 0:03:02.3]}
2... Nc6 {[%clk 0:03:01.6]} 3. Bc4 {[%clk 0:03:03.7]} 3... Bc5 {[%clk
0:03:01.2]} 4. c3 {[%clk 0:03:04.5]} 4... Nf6 {[%clk 0:03:01.6]} 5. d3 {[%clk
0:03:05.3]} 5... a6 {[%clk 0:03:01.4]} 6. a4 {[%clk 0:03:02.6]} 6... d6 {[%clk
0:03:01.6]} 7. Bg5 {[%clk 0:02:57.1]} 7... h6 {[%clk 0:03:00.4]} 8. Bh4 {[%clk
0:02:58]} 8... g5 {[%clk 0:02:56.6]} 9. Bg3 {[%clk 0:02:58.5]} 9... Ba7 {[%clk
0:02:57.4]} 10. Nbd2 {[%clk 0:02:51.9]} 10... O-O {[%clk 0:02:57.4]} 11. Qc2
{[%clk 0:02:46.4]} 11... Ne7 {[%clk 0:02:51.4]} 12. d4 {[%clk 0:02:47]} 12...
Ng6 {[%clk 0:02:41.2]} 13. h4 {[%clk 0:02:32.4]} 13... g4 {[%clk 0:02:33.3]} 14.
h5 {[%clk 0:02:27.9]} 14... Nf4 {[%clk 0:02:30.8]} 15. Bxf4 {[%clk 0:02:23.7]}
15... exf4 {[%clk 0:02:30.9]} 16. e5 {[%clk 0:02:24]} 16... d5 {[%clk
0:02:19.4]} 17. Bd3 {[%clk 0:02:06.1]} 17... gxf3 {[%clk 0:02:15.8]} 18. gxf3
{[%clk 0:02:08]} 18... Ne8 {[%clk 0:01:40.7]} 19. O-O-O {[%clk 0:01:59.1]} 19...
Kh8 {[%clk 0:01:38.6]} 20. Rdg1 {[%clk 0:01:53.6]} 20... c5 {[%clk 0:01:36.9]}
21. dxc5 {[%clk 0:01:53.4]} 21... Bxc5 {[%clk 0:01:35.4]} 22. Nb3 {[%clk
0:01:47.1]} 22... Be7 {[%clk 0:01:35.3]} 23. Nd4 {[%clk 0:01:38.5]} 23... Bg5
{[%clk 0:01:34.1]} 24. Kb1 {[%clk 0:01:20.6]} 24... Ng7 {[%clk 0:01:34.9]} 25.
Qd2 {[%clk 0:01:14.8]} 25... Qe7 {[%clk 0:01:34.8]} 26. Re1 {[%clk 0:01:08]}
26... Bd7 {[%clk 0:01:34.9]} 27. Bc2 {[%clk 0:01:08.8]} 27... f5 {[%clk
0:01:13.3]} 28. e6 {[%clk 0:01:05]} 28... Be8 {[%clk 0:01:07.9]} 29. Re5 {[%clk
0:00:58.6]} 29... Rd8 {[%clk 0:00:57.6]} 30. Qd3 {[%clk 0:00:52]} 30... Rd6
{[%clk 0:00:56.4]} 31. Bb3 {[%clk 0:00:39.4]} 31... Bxh5 {[%clk 0:00:51.4]} 32.
Bxd5 {[%clk 0:00:38.7]} 32... Bg6 {[%clk 0:00:51]} 33. Bb3 {[%clk 0:00:39.4]}
33... Bf6 {[%clk 0:00:50.7]} 34. Ree1 {[%clk 0:00:37.3]} 34... Rfd8 {[%clk
0:00:51.1]} 35. Rxh6+ {[%clk 0:00:37.7]} 35... Kg8 {[%clk 0:00:42.4]} 36. Reh1
{[%clk 0:00:38.3]} 36... Bh5 {[%clk 0:00:35.3]} 37. R1xh5 {[%clk 0:00:33.2]}
37... Nxh5 {[%clk 0:00:36.3]} 38. Qxf5 {[%clk 0:00:34.8]} 38... Bg7 {[%clk
0:00:20]} 39. Rxh5 {[%clk 0:00:33.3]} 39... Rxd4 {[%clk 0:00:18.1]} 40. Qh7+
{[%clk 0:00:27.2]} 40... Kf8 {[%clk 0:00:19]} 41. Rf5+ {[%clk 0:00:27.5]} 1-0

[Event "*** MasterClass Titled Tuesday Blitz"]
[Site "Chess.com"]
[Date "2017.10.03"]
[Round "5"]
[White "IMVoja"]
[Black "matiss90"]
[Result "1-0"]
[WhiteElo "2401"]
[BlackElo "2256"]
[TimeControl "180+2"]
[EndTime "14:07:05 PDT"]
[Termination "IMVoja won by resignation"]

1. Nf3 {[%clk 0:03:01.9]} 1... Nf6 {[%clk 0:02:59.1]} 2. d4 {[%clk 0:03:02.4]}
2... g5 {[%clk 0:03:00.1]} 3. Bxg5 {[%clk 0:03:02.6]} 3... Ne4 {[%clk
0:02:56.7]} 4. Bf4 {[%clk 0:03:00.5]} 4... Bg7 {[%clk 0:02:56.8]} 5. c3 {[%clk
0:03:00.6]} 5... d5 {[%clk 0:02:55.2]} 6. e3 {[%clk 0:03:01.3]} 6... Bf5 {[%clk
0:02:53.4]} 7. Nbd2 {[%clk 0:03:00.9]} 7... Nd7 {[%clk 0:02:43.9]} 8. h3 {[%clk
0:03:01.1]} 8... Ndf6 {[%clk 0:02:44.5]} 9. Ne5 {[%clk 0:02:59.6]} 9... c6
{[%clk 0:02:41.3]} 10. Be2 {[%clk 0:02:58.2]} 10... h5 {[%clk 0:02:37.6]} 11.
Nxe4 {[%clk 0:02:54.6]} 11... Bxe4 {[%clk 0:02:36.8]} 12. Bf3 {[%clk 0:02:50.9]}
12... Bf5 {[%clk 0:02:34.4]} 13. Qb3 {[%clk 0:02:50.4]} 13... Qb6 {[%clk
0:02:30.2]} 14. Qxb6 {[%clk 0:02:49.3]} 14... axb6 {[%clk 0:02:32.1]} 15. O-O
{[%clk 0:02:41.2]} 15... Ne4 {[%clk 0:02:31.1]} 16. Rfd1 {[%clk 0:02:35.3]}
16... h4 {[%clk 0:02:23.6]} 17. Bxe4 {[%clk 0:02:32.5]} 17... Bxe4 {[%clk
0:02:24.2]} 18. f3 {[%clk 0:02:33]} 18... Bf5 {[%clk 0:02:25]} 19. Kf2 {[%clk
0:02:30.3]} 19... Rg8 {[%clk 0:02:20.1]} 20. Re1 {[%clk 0:02:30.2]} 20... f6
{[%clk 0:02:17.1]} 21. Ng4 {[%clk 0:02:30.4]} 21... Bxg4 {[%clk 0:02:14.8]} 22.
hxg4 {[%clk 0:02:29]} 22... e5 {[%clk 0:02:15.9]} 23. dxe5 {[%clk 0:02:25.7]}
23... fxe5 {[%clk 0:02:17.8]} 24. Bg5 {[%clk 0:02:26.5]} 24... h3 {[%clk
0:02:02.2]} 25. gxh3 {[%clk 0:02:26.6]} 25... e4 {[%clk 0:02:02.7]} 26. f4
{[%clk 0:02:26.7]} 26... b5 {[%clk 0:02:01.9]} 27. a3 {[%clk 0:02:26.9]} 27...
Kf7 {[%clk 0:02:00]} 28. h4 {[%clk 0:02:26.2]} 28... c5 {[%clk 0:01:57.5]} 29.
Rad1 {[%clk 0:02:25.9]} 29... b4 {[%clk 0:01:43.8]} 30. axb4 {[%clk 0:02:17.8]}
30... cxb4 {[%clk 0:01:42.3]} 31. cxb4 {[%clk 0:02:14.7]} 31... Ke6 {[%clk
0:01:34.1]} 32. f5+ {[%clk 0:02:12.9]} 32... Kd6 {[%clk 0:01:34.8]} 33. Bf4+
{[%clk 0:02:13.1]} 33... Be5 {[%clk 0:01:35.8]} 34. g5 {[%clk 0:02:00.3]} 34...
Bxf4 {[%clk 0:01:23.8]} 35. exf4 {[%clk 0:02:00.8]} 35... Rge8 {[%clk
0:01:18.7]} 36. Rd4 {[%clk 0:01:50.6]} 36... Ra2 {[%clk 0:01:13.3]} 37. Re2
{[%clk 0:01:48.6]} 37... Rf8 {[%clk 0:01:04.5]} 38. f6 {[%clk 0:01:48.3]} 38...
Ke6 {[%clk 0:01:05]} 39. Red2 {[%clk 0:01:47.5]} 39... Kf5 {[%clk 0:01:03.3]}
40. Ke3 {[%clk 0:01:41.5]} 40... Ra1 {[%clk 0:00:44.5]} 41. Rxd5+ {[%clk
0:01:40.3]} 41... Kg6 {[%clk 0:00:42.8]} 42. Kxe4 {[%clk 0:01:36.2]} 42... Re1+
{[%clk 0:00:41.7]} 43. Kf3 {[%clk 0:01:35.4]} 43... Rfe8 {[%clk 0:00:40.8]} 44.
Re5 {[%clk 0:01:29.8]} 44... R8xe5 {[%clk 0:00:32.2]} 45. fxe5 {[%clk
0:01:30.3]} 45... Rxe5 {[%clk 0:00:33.8]} 46. Rd7 {[%clk 0:01:31]} 46... b5
{[%clk 0:00:12.3]} 47. Rg7+ {[%clk 0:01:30.2]} 47... Kh5 {[%clk 0:00:12.6]} 48.
f7 {[%clk 0:01:30.7]} 48... Rf5+ {[%clk 0:00:13.2]} 49. Ke4 {[%clk 0:01:32]}
49... Rf2 {[%clk 0:00:14]} 50. g6 {[%clk 0:01:32.8]} 50... Kh6 {[%clk
0:00:12.1]} 51. Rg8 {[%clk 0:01:33.2]} 51... Kh5 {[%clk 0:00:04]} 52. f8=Q
{[%clk 0:01:30.6]} 52... Re2+ {[%clk 0:00:04.7]} 53. Kd3 {[%clk 0:01:31.1]}
53... Rxb2 {[%clk 0:00:04.7]} 1-0

[Event "*** MasterClass Titled Tuesday Blitz"]
[Site "Chess.com"]
[Date "2017.10.03"]
[Round "5"]
[White "Semetey"]
[Black "igorkovalenko"]
[Result "1/2-1/2"]
[WhiteElo "2458"]
[BlackElo "2711"]
[TimeControl "180+2"]
[EndTime "14:07:06 PDT"]
[Termination "Game drawn by repetition"]

1. Nf3 {[%clk 0:03:01.5]} 1... c5 {[%clk 0:03:00.9]} 2. g3 {[%clk 0:03:02.9]}
2... g6 {[%clk 0:03:02.2]} 3. Bg2 {[%clk 0:03:03.9]} 3... Bg7 {[%clk 0:03:04.1]}
4. O-O {[%clk 0:03:05.4]} 4... Nf6 {[%clk 0:03:05]} 5. c4 {[%clk 0:03:04.2]}
5... Nc6 {[%clk 0:03:03.2]} 6. Nc3 {[%clk 0:03:05.2]} 6... d6 {[%clk 0:03:04.3]}
7. d4 {[%clk 0:03:02]} 7... O-O {[%clk 0:03:01.2]} 8. dxc5 {[%clk 0:02:50.3]}
8... dxc5 {[%clk 0:03:02.4]} 9. Be3 {[%clk 0:02:51.9]} 9... Qxd1 {[%clk
0:02:49.1]} 10. Rfxd1 {[%clk 0:02:52]} 10... Nd7 {[%clk 0:02:51]} 11. Nd2 {[%clk
0:02:38.4]} 11... Bxc3 {[%clk 0:02:51.1]} 12. bxc3 {[%clk 0:02:39.1]} 12... Na5
{[%clk 0:02:50]} 13. Rab1 {[%clk 0:02:27.6]} 13... Rb8 {[%clk 0:02:49.8]} 14.
Bf4 {[%clk 0:01:48]} 14... e5 {[%clk 0:02:50.1]} 15. Bh6 {[%clk 0:01:49]} 15...
Re8 {[%clk 0:01:36.6]} 16. Bd5 {[%clk 0:01:49]} 16... Nf6 {[%clk 0:01:34.7]} 17.
Be3 {[%clk 0:01:42.5]} 17... Bf5 {[%clk 0:01:30.8]} 18. Rb5 {[%clk 0:01:41.2]}
18... b6 {[%clk 0:01:32]} 19. Bg5 {[%clk 0:01:15.2]} 19... Nxd5 {[%clk
0:01:32.5]} 20. cxd5 {[%clk 0:01:15.8]} 20... Kg7 {[%clk 0:01:32.8]} 21. e4
{[%clk 0:01:11.5]} 21... Bd7 {[%clk 0:01:33.3]} 22. Rbb1 {[%clk 0:01:11.3]}
22... h6 {[%clk 0:01:33]} 23. Be3 {[%clk 0:01:12.2]} 23... Ba4 {[%clk
0:01:27.3]} 24. Re1 {[%clk 0:01:09.3]} 24... Nb7 {[%clk 0:01:21.6]} 25. f4
{[%clk 0:01:05.1]} 25... Rbd8 {[%clk 0:01:12.6]} 26. c4 {[%clk 0:00:55.5]} 26...
f6 {[%clk 0:01:05.7]} 27. fxe5 {[%clk 0:00:51.1]} 27... Rxe5 {[%clk 0:01:02.7]}
28. Bf4 {[%clk 0:00:51.7]} 28... Re7 {[%clk 0:01:03.3]} 29. e5 {[%clk 0:00:53]}
29... g5 {[%clk 0:00:57.9]} 30. exf6+ {[%clk 0:00:53.5]} 30... Kxf6 {[%clk
0:00:59.7]} 31. Rxe7 {[%clk 0:00:54.5]} 31... Kxe7 {[%clk 0:01:00.8]} 32. Re1+
{[%clk 0:00:54.7]} 32... Kf7 {[%clk 0:00:56.1]} 33. Be5 {[%clk 0:00:51.5]} 33...
Re8 {[%clk 0:00:55]} 34. Rf1+ {[%clk 0:00:52.4]} 34... Kg8 {[%clk 0:00:55.5]}
35. Bc7 {[%clk 0:00:35.3]} 35... Re2 {[%clk 0:00:52.2]} 36. Nf3 {[%clk
0:00:33.2]} 36... Na5 {[%clk 0:00:50.1]} 37. Ne5 {[%clk 0:00:33.9]} 37... Re4
{[%clk 0:00:36.8]} 38. Bd6 {[%clk 0:00:08.6]} 38... Nxc4 {[%clk 0:00:35.8]} 39.
Rf8+ {[%clk 0:00:09.5]} 39... Kg7 {[%clk 0:00:35.1]} 40. Rf7+ {[%clk 0:00:10.8]}
40... Kg8 {[%clk 0:00:36.7]} 41. Rf8+ {[%clk 0:00:11.3]} 41... Kg7 {[%clk
0:00:38.2]} 42. Rf7+ {[%clk 0:00:11.9]} 42... Kg8 {[%clk 0:00:39.6]} 43. Rf8+
{[%clk 0:00:10.8]} 43... Kg7 {[%clk 0:00:40.3]} 44. Rf7+ {[%clk 0:00:11.8]}
44... Kg8 {[%clk 0:00:41.1]} 1/2-1/2